[Event "FIDE-Online-Steinitz-Memorial-Women"]
[White "Lei, Tingjie"]
[Black "Stefanova, Antoaneta"]
[Site "Internet"]
[Round "5"]
[Annotator "ChessBase"]
[Result "1-0"]
[Date "2020.05.15"]
[WhiteElo "2530"]
[BlackElo "2485"]
[PlyCount "85"]
[TimeControl "180+2"]

1. e4 e5 2. Nf3 {[%emt 0:0:5]} Nc6 {[%emt 0:0:4]} 3. Bb5 {[%emt 0:0:3]} a6 {[%emt 0:0:1]} 4. Ba4 {[%emt 0:0:1]} g6 {[%emt 0:0:1]} 5. c3 {[%emt 0:0:0]} b5 {[%emt 0:0:8]} 6. Bc2 {[%emt 0:0:3]} Bg7 {[%emt 0:0:12]} 7. a4 {[%emt 0:0:4]} Rb8 {[%emt 0:0:15]} 8. 0-0 {[%emt 0:0:2]} d6 {[%emt 0:0:0]} 9. Re1 {[%emt 0:0:4]} Nge7 {[%emt 0:0:5]} 10. d4 {[%emt 0:0:4]} exd4 {[%emt 0:0:8]} 11. Nxd4 {[%emt 0:0:16]} 0-0 {[%emt 0:0:8]} 12. Bg5 {[%emt 0:0:3]
} Bd7 {[%emt 0:0:7]} 13. axb5 {[%emt 0:0:3]} axb5 {[%emt 0:0:0]} 14. Nxc6 {[%emt 0:0:31]} Bxc6 {[%emt 0:0:1]} 15. e5 {[%emt 0:0:6]} d5 {[%emt 0:0:13]} 16. Nd2 {[%emt 0:0:2]} h6 {[%emt 0:0:3]} 17. Bh4 {[%emt 0:0:2]
} g5 {[%emt 0:0:4]} 18. Bg3 {[%emt 0:0:2]} Bd7 {[%emt 0:0:0]} 19. Nb3 {[%emt 0:0:4]} Bf5 {[%emt 0:0:7]} 20. Nc5 {[%emt 0:0:8]} Qc8 {[%emt 0:0:16]} 21. Bxf5 {[%emt 0:0:23]} Qxf5 {[%emt 0:0:3]} 22. e6 {[%emt 0:0:2]
} Rbc8 {[%emt 0:0:8]} 23. Ra7 {[%emt 0:0:8]} Nc6 {[%emt 0:0:0]} 24. Ra6 {[%emt 0:0:5]} Ne7 {[%emt 0:0:9]} 25. Ra7 {[%emt 0:0:15]} Nc6 {[%emt 0:0:2]} 26. Rxc7 {[%emt 0:0:2]} Rxc7 {[%emt 0:0:4]} 27. Bxc7 {[%emt 0:0:2]
} fxe6 {[%emt 0:0:1]} 28. Nxe6 {[%emt 0:0:12]} Qxf2+ {[%emt 0:0:0]} 29. Kh1 {[%emt 0:0:1]} Rf7 {[%emt 0:0:19]} 30. Bg3 {[%emt 0:0:3]} Qf5 {[%emt 0:0:2]} 31. Nxg7 {[%emt 0:0:14]} Kxg7 {[%emt 0:0:2]} 32. h3 {[%emt 0:0:1]
} Ne7 {[%emt 0:0:16]} 33. Qd4+ {[%emt 0:0:4]} Kh7 {[%emt 0:0:0]} 34. Qb6 {[%emt 0:0:7]} Ng6 {[%emt 0:0:4]} 35. Qxb5 {[%emt 0:0:2]} h5 {[%emt 0:0:2]} 36. Qe2 {[%emt 0:0:13]} Kh6 {[%emt 0:0:5]} 37. Kg1 {[%emt 0:0:3]
} h4 {[%emt 0:0:5]} 38. Bd6 {[%emt 0:0:1]} Qd7 {[%emt 0:0:0]} 39. Qe6 {[%emt 0:0:3]} Qb7 {[%emt 0:0:3]} 40. b4 {[%emt 0:0:4]} Kh7 {[%emt 0:0:7]} 41. Bc5 {[%emt 0:0:3]} Nf4 {[%emt 0:0:2]} 42. Qg4 {[%emt 0:0:2]
} Kg6 {[%emt 0:0:4]} 43. Re5 {[%emt 0:0:2]} 1-0

[Event "FIDE-Online-Steinitz-Memorial-Women"]
[White "Abdumalik, Zhansaya"]
[Black "Khademalsharieh, Sarasadat"]
[Site "Internet"]
[Round "6"]
[Annotator "ChessBase"]
[Result "0-1"]
[Date "2020.05.15"]
[WhiteElo "2409"]
[BlackElo "2431"]
[PlyCount "102"]
[TimeControl "180+2"]

1. e4 e5 2. Nf3 {[%emt 0:0:4]} Nc6 {[%emt 0:0:3]} 3. Bb5 {[%emt 0:0:0]} a6 {[%emt 0:0:2]} 4. Ba4 {[%emt 0:0:2]} Nf6 {[%emt 0:0:1]} 5. 0-0 {[%emt 0:0:1]
} b5 {[%emt 0:0:0]} 6. Bb3 {[%emt 0:0:1]} Bc5 {[%emt 0:0:1]
} 7. c3 {[%emt 0:0:1]} d6 {[%emt 0:0:2]} 8. d4 {[%emt 0:0:1]} Bb6 {[%emt 0:0:2]
} 9. Be3 {[%emt 0:0:1]} Bg4 {[%emt 0:0:12]} 10. Nbd2 {[%emt 0:0:0]} exd4 {[%emt 0:0:5]} 11. cxd4 {[%emt 0:0:2]} Nxd4 {[%emt 0:0:9]} 12. Bxd4 {[%emt 0:0:2]} Bxd4 {[%emt 0:0:1]} 13. Bxf7+ {[%emt 0:0:8]} Kxf7 {[%emt 0:0:18]} 14. Qb3+ {[%emt 0:0:2]} d5 {[%emt 0:0:18]} 15. Nxd4 {[%emt 0:0:3]
} c5 {[%emt 0:0:1]} 16. Nc6 {[%emt 0:0:21]} Qd6 {[%emt 0:0:0]} 17. exd5 {[%emt 0:0:2]} c4 {[%emt 0:0:27]} 18. Qg3 {[%emt 0:0:3]} Qxg3 {[%emt 0:0:22]} 19. hxg3 {[%emt 0:0:9]} Rhe8 {[%emt 0:0:2]} 20. f4 {[%emt 0:0:8]
} Kg8 {[%emt 0:0:10]} 21. d6 {[%emt 0:0:18]} Re6 {[%emt 0:0:0]} 22. Ne5 {[%emt 0:0:19]} Rxd6 {[%emt 0:0:2]} 23. Ndf3 {[%emt 0:0:5]} Bf5 {[%emt 0:0:17]} 24. a4 {[%emt 0:0:2]} Rad8 {[%emt 0:0:2]} 25. axb5 {[%emt 0:0:3]
} axb5 {[%emt 0:0:1]} 26. Ra5 {[%emt 0:0:3]} Ne4 {[%emt 0:0:0]} 27. Rxb5 {[%emt 0:0:10]} Nxg3 {[%emt 0:0:1]} 28. Re1 {[%emt 0:0:2]} Bd3 {[%emt 0:0:2]} 29. Kf2 {[%emt 0:0:7]} Ne4+ {[%emt 0:0:2]} 30. Ke3 {[%emt 0:0:1]
} Nf6 {[%emt 0:0:5]} 31. g3 {[%emt 0:0:5]} c3 {[%emt 0:0:7]
} 32. Rb7 {[%emt 0:0:11]} c2 {[%emt 0:0:9]} 33. Ng5 {[%emt 0:0:13]} Bf5 {[%emt 0:0:11]
} 34. Ke2 {[%emt 0:0:29]} Rd1 {[%emt 0:0:2]} 35. Rc7 {[%emt 0:0:0]} R8d2+ {[%emt 0:0:2]} 36. Kf1 {[%emt 0:0:2]} Rxe1+ {[%emt 0:0:3]} 37. Kxe1 {[%emt 0:0:1]} Rd1+ {[%emt 0:0:1]} 38. Ke2 {[%emt 0:0:1]} c1=Q {[%emt 0:0:2]
} 39. Rxc1 {[%emt 0:0:4]} Rxc1 {[%emt 0:0:1]} 40. Ngf3 {[%emt 0:0:4]
} Rc2+ {[%emt 0:0:2]} 41. Ke3 {[%emt 0:0:1]} Rxb2 {[%emt 0:0:0]} 42. Nd4 {[%emt 0:0:1]} Bc8 {[%emt 0:0:5]} 43. f5 {[%emt 0:0:2]} Ra2 {[%emt 0:0:2]} 44. g4 {[%emt 0:0:2]} h6 {[%emt 0:0:1]} 45. Ndc6 {[%emt 0:0:4]
} Ra3+ {[%emt 0:0:3]} 46. Kf4 {[%emt 0:0:4]} Bb7 {[%emt 0:0:0]} 47. Ne7+ {[%emt 0:0:2]} Kh7 {[%emt 0:0:1]} 48. N7g6 {[%emt 0:0:4]} Nd5+ {[%emt 0:0:2]} 49. Ke4 {[%emt 0:0:2]} Ne7+ {[%emt 0:0:2]} 50. Kf4 {[%emt 0:0:2]
} Nxg6+ {[%emt 0:0:1]} 51. fxg6+ {[%emt 0:0:3]} Kg8 {[%emt 0:0:0]} 0-1

[Event "FIDE-Online-Steinitz-Memorial-Women"]
[White "Paehtz, Elisabeth"]
[Black "Sebag, Marie"]
[Site "Internet"]
[Round "7"]
[Annotator "ChessBase"]
[Result "0-1"]
[Date "2020.05.16"]
[WhiteElo "2396"]
[BlackElo "2482"]
[PlyCount "206"]
[TimeControl "180+2"]

1. d4 {[%emt 0:0:0]} d5 {[%emt 0:0:0]} 2. Bf4 {[%emt 0:0:4]} Nf6 {[%emt 0:0:5]
} 3. e3 {[%emt 0:0:1]} c5 {[%emt 0:0:3]} 4. c3 {[%emt 0:0:0]} Nc6 {[%emt 0:0:3]} 5. Nd2 {[%emt 0:0:3]} e6 {[%emt 0:0:3]} 6. Ngf3 {[%emt 0:0:2]
} cxd4 {[%emt 0:0:3]} 7. exd4 {[%emt 0:0:1]} Nh5 {[%emt 0:0:0]} 8. Be3 {[%emt 0:0:7]} Bd6 {[%emt 0:0:7]} 9. Ne5 {[%emt 0:0:1]} Nf6 {[%emt 0:0:2]
} 10. f4 {[%emt 0:0:3]} 0-0 {[%emt 0:0:14]} 11. Bd3 {[%emt 0:0:0]} Bd7 {[%emt 0:0:4]} 12. 0-0 {[%emt 0:0:3]} Ne7 {[%emt 0:0:2]} 13. Qf3 {[%emt 0:0:18]} Bc6 {[%emt 0:0:17]} 14. g4 {[%emt 0:0:11]} Ng6 {[%emt 0:0:0]} 15. g5 {[%emt 0:0:4]} Nd7 {[%emt 0:0:2]} 16. Qh3 {[%emt 0:0:15]} f5 {[%emt 0:0:10]} 17. gxf6 {[%emt 0:0:19]} Qxf6 {[%emt 0:0:1]} 18. Ndf3 {[%emt 0:0:8]
} Rfe8 {[%emt 0:0:45]} 19. Ng5 {[%emt 0:0:0]} Ndf8 {[%emt 0:0:0]} 20. Bxg6 {[%emt 0:0:16]} hxg6 {[%emt 0:0:4]} 21. Nef7 {[%emt 0:0:0]} Qxf7 {[%emt 0:0:3]} 22. Nxf7 {[%emt 0:0:2]} Kxf7 {[%emt 0:0:0]} 23. Bf2 {[%emt 0:0:9]} Nd7 {[%emt 0:0:3]} 24. Bh4 {[%emt 0:0:2]} Rh8 {[%emt 0:0:2]
} 25. Qg3 {[%emt 0:0:2]} Rh5 {[%emt 0:0:7]} 26. Bg5 {[%emt 0:0:0]} Rah8 {[%emt 0:0:1]} 27. Rae1 {[%emt 0:0:6]} Nf6 {[%emt 0:0:5]} 28. Bxf6 {[%emt 0:0:21]} gxf6 {[%emt 0:0:3]} 29. Re2 {[%emt 0:0:8]} Bb5 {[%emt 0:0:5]
} 30. Rfe1 {[%emt 0:0:7]} Bxe2 {[%emt 0:0:2]} 31. Rxe2 {[%emt 0:0:1]
} Rf5 {[%emt 0:0:12]} 32. Qe3 {[%emt 0:0:13]} Re8 {[%emt 0:0:0]} 33. Rf2 {[%emt 0:0:3]} b6 {[%emt 0:0:3]} 34. Qd3 {[%emt 0:0:8]} Bxf4 {[%emt 0:0:6]} 35. Qb5 {[%emt 0:0:3]} Be3 {[%emt 0:0:3]} 36. Qd7+ {[%emt 0:0:13]
} Re7 {[%emt 0:0:2]} 37. Qd8 {[%emt 0:0:2]} Bxf2+ {[%emt 0:0:0]} 38. Kg2 {[%emt 0:0:1]} Be3 {[%emt 0:0:7]} 39. Qh8 {[%emt 0:0:3]} Rh5 {[%emt 0:0:2]} 40. Qd8 {[%emt 0:0:5]} Rg5+ {[%emt 0:0:2]} 41. Kf3 {[%emt 0:0:1]
} Bc1 {[%emt 0:0:3]} 42. b3 {[%emt 0:0:3]} Rh5 {[%emt 0:0:0]} 43. Kg2 {[%emt 0:0:5]} Bf4 {[%emt 0:0:1]} 44. h3 {[%emt 0:0:2]} Rg5+ {[%emt 0:0:3]} 45. Kf3 {[%emt 0:0:1]} Rf5 {[%emt 0:0:1]} 46. Kg2 {[%emt 0:0:3]
} Bg5 {[%emt 0:0:1]} 47. c4 {[%emt 0:0:3]} dxc4 {[%emt 0:0:0]} 48. bxc4 {[%emt 0:0:4]} Rf4 {[%emt 0:0:1]} 49. c5 {[%emt 0:0:1]} bxc5 {[%emt 0:0:2]} 50. dxc5 {[%emt 0:0:1]} Rc4 {[%emt 0:0:1]} 51. Qc8 {[%emt 0:0:5]
} Bf4 {[%emt 0:0:4]} 52. c6 {[%emt 0:0:1]} Rc7 {[%emt 0:0:0]} 53. Qh8 {[%emt 0:0:2]} R4xc6 {[%emt 0:0:5]} 54. Qh7+ {[%emt 0:0:1]} Kf8 {[%emt 0:0:1]} 55. Qh8+ {[%emt 0:0:2]} Ke7 {[%emt 0:0:1]} 56. Qg7+ {[%emt 0:0:1]
} Kd6 {[%emt 0:0:1]} 57. Qxf6 {[%emt 0:0:1]} Be5 {[%emt 0:0:0]} 58. Qd8+ {[%emt 0:0:9]} Rd7 {[%emt 0:0:3]} 59. Qf8+ {[%emt 0:0:3]} Kd5 {[%emt 0:0:0]} 60. Qf3+ {[%emt 0:0:2]} Kd6 {[%emt 0:0:3]} 61. Qf8+ {[%emt 0:0:2]
} Kc7 {[%emt 0:0:1]} 62. Qa8 {[%emt 0:0:2]} Bd4 {[%emt 0:0:0]} 63. Kf3 {[%emt 0:0:2]} Bb6 {[%emt 0:0:2]} 64. Qg8 {[%emt 0:0:2]} Rd3+ {[%emt 0:0:7]} 65. Kf4 {[%emt 0:0:3]} Rc5 {[%emt 0:0:3]} 66. Qf7+ {[%emt 0:0:2]
} Rd7 {[%emt 0:0:2]} 67. Qxe6 {[%emt 0:0:0]} Rd4+ {[%emt 0:0:0]} 68. Kf3 {[%emt 0:0:3]} Rc3+ {[%emt 0:0:1]} 69. Ke2 {[%emt 0:0:1]} Rdd3 {[%emt 0:0:3]} 70. Qe5+ {[%emt 0:0:2]} Kb7 {[%emt 0:0:1]} 71. Qe4+ {[%emt 0:0:1]
} Ka6 {[%emt 0:0:1]} 72. Qa4+ {[%emt 0:0:3]} Kb7 {[%emt 0:0:0]} 73. Qe4+ {[%emt 0:0:2]} Kc7 {[%emt 0:0:1]} 74. Qe5+ {[%emt 0:0:1]} Kd7 {[%emt 0:0:1]} 75. Qg7+ {[%emt 0:0:2]} Kd8 {[%emt 0:0:1]} 76. Qf6+ {[%emt 0:0:1]
} Kc8 {[%emt 0:0:1]} 77. Qe6+ {[%emt 0:0:1]} Kb8 {[%emt 0:0:0]} 78. Qe5+ {[%emt 0:0:1]} Bc7 {[%emt 0:0:2]} 79. Qb5+ {[%emt 0:0:2]} Kc8 {[%emt 0:0:1]} 80. Qe8+ {[%emt 0:0:2]} Kb7 {[%emt 0:0:2]} 81. Qb5+ {[%emt 0:0:1]
} Ka8 {[%emt 0:0:3]} 82. Qe8+ {[%emt 0:0:3]} Bd8 {[%emt 0:0:0]} 83. Qe4+ {[%emt 0:0:3]} Kb8 {[%emt 0:0:1]} 84. Qe5+ {[%emt 0:0:3]} Kc8 {[%emt 0:0:3]} 85. Qe6+ {[%emt 0:0:2]} Kb7 {[%emt 0:0:2]} 86. Qe4+ {[%emt 0:0:2]
} Kc7 {[%emt 0:0:2]} 87. Qe5+ {[%emt 0:0:1]} Kd7 {[%emt 0:0:0]} 88. Qg7+ {[%emt 0:0:3]} Be7 {[%emt 0:0:1]} 89. Qxg6 {[%emt 0:0:1]} Re3+ {[%emt 0:0:2]} 90. Kd2 {[%emt 0:0:3]} Rcd3+ {[%emt 0:0:1]} 91. Kc2 {[%emt 0:0:0]
} Rxh3 {[%emt 0:0:2]} 92. Qf5+ {[%emt 0:0:4]} Ke8 {[%emt 0:0:0]} 93. Qg6+ {[%emt 0:0:3]} Kf8 {[%emt 0:0:1]} 94. Qf5+ {[%emt 0:0:1]
} Kg7 {[%emt 0:0:3]} 95. Qg4+ {[%emt 0:0:1]} Kf7 {[%emt 0:0:0]} 96. Qf5+ {[%emt 0:0:1]} Bf6 {[%emt 0:0:1]} 97. Qe4 {[%emt 0:0:4]} Rc3+ {[%emt 0:0:0]} 98. Kd2 {[%emt 0:0:3]} Rh2+ {[%emt 0:0:1]} 99. Kd1 {[%emt 0:0:0]} Rcc2 {[%emt 0:0:3]} 100. Qd5+ {[%emt 0:0:3]} Kg7 {[%emt 0:0:1]} 101. Qd7+ {[%emt 0:0:3]} Kh6 {[%emt 0:0:2]} 102. Qf5 {[%emt 0:0:4]} Rhd2+ {[%emt 0:0:0]} 103. Ke1 {[%emt 0:0:3]} Bh4+ {[%emt 0:0:1]} 0-1

[Event "FIDE-Online-Steinitz-Memorial-Women"]
[White "Tan, Zhongyi"]
[Black "Cori T., Deysi"]
[Site "Internet"]
[Round "8"]
[Annotator "ChessBase"]
[Result "1-0"]
[Date "2020.05.16"]
[WhiteElo "2510"]
[BlackElo "2391"]
[PlyCount "145"]
[TimeControl "180+2"]

1. d4 Nf6 2. c4 {[%emt 0:0:4]} e6 {[%emt 0:0:4]} 3. Nc3 {[%emt 0:0:1]} Bb4 {[%emt 0:0:1]} 4. Qc2 {[%emt 0:0:1]} d5 {[%emt 0:0:1]} 5. cxd5 {[%emt 0:0:2]
} Qxd5 {[%emt 0:0:2]} 6. e3 {[%emt 0:0:15]} c5 {[%emt 0:0:18]
} 7. Bd2 {[%emt 0:0:1]} Bxc3 {[%emt 0:0:3]} 8. Bxc3 {[%emt 0:0:1]} Nc6 {[%emt 0:0:8]
} 9. Nf3 {[%emt 0:0:29]} 0-0 {[%emt 0:0:14]} 10. dxc5 {[%emt 0:0:0]} Qxc5 {[%emt 0:0:4]} 11. Bd3 {[%emt 0:0:3]} Nb4 {[%emt 0:0:19]} 12. Bxb4 {[%emt 0:0:13]} Qxb4+ {[%emt 0:0:1]} 13. Qd2 {[%emt 0:0:2]} Nd5 {[%emt 0:0:58]
} 14. Rc1 {[%emt 0:0:25]} Rd8 {[%emt 0:0:13]} 15. Qxb4 {[%emt 0:0:13]
} Nxb4 {[%emt 0:0:1]} 16. Bb1 {[%emt 0:0:4]} b6 {[%emt 0:0:0]} 17. Nd4 {[%emt 0:0:9]} Ba6 {[%emt 0:0:5]} 18. a3 {[%emt 0:0:7]} Nd3+ {[%emt 0:0:2]} 19. Bxd3 {[%emt 0:0:3]} Bxd3 {[%emt 0:0:0]} 20. Rc3 {[%emt 0:0:14]
} Ba6 {[%emt 0:0:3]} 21. f4 {[%emt 0:0:11]} Rac8 {[%emt 0:0:0]} 22. Rxc8 {[%emt 0:0:12]} Rxc8 {[%emt 0:0:3]} 23. Kd2 {[%emt 0:0:1]} Bb7 {[%emt 0:0:4]} 24. Rg1 {[%emt 0:0:2]} Bd5 {[%emt 0:0:14]} 25. g3 {[%emt 0:0:2]
} Kf8 {[%emt 0:0:10]} 26. Kd3 {[%emt 0:0:7]} Ke7 {[%emt 0:0:0]} 27. e4 {[%emt 0:0:2]} Bc4+ {[%emt 0:0:1]} 28. Ke3 {[%emt 0:0:2]} Ba6 {[%emt 0:0:2]} 29. Rd1 {[%emt 0:0:1]} f6 {[%emt 0:0:2]} 30. Rd2 {[%emt 0:0:0]} Rc1 {[%emt 0:0:6]} 31. Nb3 {[%emt 0:0:6]} Rb1 {[%emt 0:0:3]} 32. Nd4 {[%emt 0:0:2]} Re1+ {[%emt 0:0:2]} 33. Kf3 {[%emt 0:0:3]} Bb7 {[%emt 0:0:2]
} 34. Re2 {[%emt 0:0:3]} Rd1 {[%emt 0:0:2]} 35. Ke3 {[%emt 0:0:0]} Ba6 {[%emt 0:0:5]} 36. Rc2 {[%emt 0:0:2]} Re1+ {[%emt 0:0:2]} 37. Kf3 {[%emt 0:0:1]} Kd7 {[%emt 0:0:3]} 38. Rd2 {[%emt 0:0:5]} Rf1+ {[%emt 0:0:4]
} 39. Ke3 {[%emt 0:0:2]} Re1+ {[%emt 0:0:1]} 40. Kf3 {[%emt 0:0:2]
} Rf1+ {[%emt 0:0:3]} 41. Kg2 {[%emt 0:0:1]} Rb1 {[%emt 0:0:0]} 42. e5 {[%emt 0:0:4]} Bb7+ {[%emt 0:0:2]} 43. Kf2 {[%emt 0:0:1]} Ke7 {[%emt 0:0:1]} 44. exf6+ {[%emt 0:0:5]} gxf6 {[%emt 0:0:3]} 45. Re2 {[%emt 0:0:1]
} Bd5 {[%emt 0:0:1]} 46. Nf5+ {[%emt 0:0:3]} Kf7 {[%emt 0:0:0]} 47. Ne3 {[%emt 0:0:1]} Be4 {[%emt 0:0:3]} 48. Nc4 {[%emt 0:0:3]} Bd3 {[%emt 0:0:1]} 49. Rd2 {[%emt 0:0:2]} Bxc4 {[%emt 0:0:2]} 50. Rd7+ {[%emt 0:0:2]
} Kg6 {[%emt 0:0:1]} 51. b4 {[%emt 0:0:1]} Rb2+ {[%emt 0:0:0]} 52. Ke3 {[%emt 0:0:1]} Rb3+ {[%emt 0:0:1]} 53. Kd4 {[%emt 0:0:2]} Bd5 {[%emt 0:0:3]} 54. Rxa7 {[%emt 0:0:2]} h5 {[%emt 0:0:1]} 55. Ra6 {[%emt 0:0:5]
} b5 {[%emt 0:0:2]} 56. Kc5 {[%emt 0:0:3]} Bc4 {[%emt 0:0:0]} 57. a4 {[%emt 0:0:2]} Ra3 {[%emt 0:0:3]} 58. Ra5 {[%emt 0:0:4]} Be2 {[%emt 0:0:4]} 59. axb5 {[%emt 0:0:2]} Rc3+ {[%emt 0:0:1]} 60. Kd6 {[%emt 0:0:2]
} Bg4 {[%emt 0:0:5]} 61. b6 {[%emt 0:0:1]} Rd3+ {[%emt 0:0:0]} 62. Kc7 {[%emt 0:0:2]} Bf3 {[%emt 0:0:1]} 63. b7 {[%emt 0:0:2]} Bxb7 {[%emt 0:0:2]} 64. Kxb7 {[%emt 0:0:1]} Rd2 {[%emt 0:0:1]} 65. b5 {[%emt 0:0:2]
} Rxh2 {[%emt 0:0:1]} 66. b6 {[%emt 0:0:1]} Rb2 {[%emt 0:0:0]} 67. Kc7 {[%emt 0:0:2]} h4 {[%emt 0:0:4]} 68. gxh4 {[%emt 0:0:2]} Rb4 {[%emt 0:0:1]} 69. h5+ {[%emt 0:0:2]} Kh6 {[%emt 0:0:2]} 70. b7 {[%emt 0:0:0]} Rxb7+ {[%emt 0:0:2]} 71. Kxb7 {[%emt 0:0:1]} e5 {[%emt 0:0:2]} 72. fxe5 {[%emt 0:0:2]} fxe5 {[%emt 0:0:1]} 73. Rxe5 {[%emt 0:0:2]} 1-0

[Event "FIDE-Online-Steinitz-Memorial-Women"]
[White "Paehtz, Elisabeth"]
[Black "Khademalsharieh, Sarasadat"]
[Site "Internet"]
[Round "9"]
[Annotator "ChessBase"]
[Result "0-1"]
[Date "2020.05.16"]
[WhiteElo "2396"]
[BlackElo "2431"]
[PlyCount "60"]
[TimeControl "180+2"]

1. d4 d5 2. Bf4 {[%emt 0:0:5]} Nf6 {[%emt 0:0:4]} 3. e3 {[%emt 0:0:1]} c5 {[%emt 0:0:2]} 4. c3 {[%emt 0:0:6]} Nc6 {[%emt 0:0:2]} 5. Nd2 {[%emt 0:0:0]} cxd4 {[%emt 0:0:4]} 6. exd4 {[%emt 0:0:2]} Bf5 {[%emt 0:0:1]} 7. Ngf3 {[%emt 0:0:2]} e6 {[%emt 0:0:1]} 8. Qb3 {[%emt 0:0:3]} Bd6 {[%emt 0:0:0]} 9. Bg3 {[%emt 0:0:3]} Bxg3 {[%emt 0:0:2]} 10. hxg3 {[%emt 0:0:2]} Qe7 {[%emt 0:0:1]} 11. Bb5 {[%emt 0:0:3]} 0-0 {[%emt 0:0:3]} 12. Bxc6 {[%emt 0:0:6]
} bxc6 {[%emt 0:0:3]} 13. Qa4 {[%emt 0:0:2]} c5 {[%emt 0:0:0]} 14. Qa3 {[%emt 0:0:6]} Rfc8 {[%emt 0:0:9]} 15. Nb3 {[%emt 0:0:3]} Ne4 {[%emt 0:0:1]} 16. 0-0 {[%emt 0:0:14]} Qc7 {[%emt 0:0:5]} 17. Rfe1 {[%emt 0:0:24]
} c4 {[%emt 0:0:3]} 18. Nbd2 {[%emt 0:0:2]} Nxd2 {[%emt 0:0:0]} 19. Nxd2 {[%emt 0:0:2]} h6 {[%emt 0:0:1]} 20. Nf3 {[%emt 0:0:6]} a5 {[%emt 0:0:4]} 21. Qa4 {[%emt 0:0:12]} Rab8 {[%emt 0:0:3]} 22. Re2 {[%emt 0:0:2]
} Rb7 {[%emt 0:0:2]} 23. Ne5 {[%emt 0:0:21]} Rcb8 {[%emt 0:0:0]} 24. Rd1 {[%emt 0:0:14]} f6 {[%emt 0:0:20]} 25. g4 {[%emt 0:0:26]} Bh7 {[%emt 0:0:20]
} 26. Nc6 {[%emt 0:0:8]} Qd7 {[%emt 0:0:4]} 27. Rde1 {[%emt 0:0:8]
} Re8 {[%emt 0:0:45]} 28. b3 {[%emt 0:0:5]} Bd3 {[%emt 0:0:0]} 29. Rd2 {[%emt 0:0:5]} cxb3 {[%emt 0:0:16]} 30. axb3 {[%emt 0:0:4]} Bb5 {[%emt 0:0:2]} 0-1

[Event "FIDE-Online-Steinitz-Memorial-Women"]
[White "Abdumalik, Zhansaya"]
[Black "Kosteniuk, Alexandra"]
[Site "Internet"]
[Round "11"]
[Annotator "ChessBase"]
[Result "1-0"]
[Date "2020.05.16"]
[WhiteElo "2409"]
[BlackElo "2521"]
[PlyCount "83"]
[TimeControl "180+2"]

1. e4 c6 2. d4 {[%emt 0:0:4]} d5 {[%emt 0:0:4]} 3. Nd2 {[%emt 0:0:0]} dxe4 {[%emt 0:0:1]} 4. Nxe4 {[%emt 0:0:1]} Nf6 {[%emt 0:0:1]} 5. Nxf6+ {[%emt 0:0:5]
} exf6 {[%emt 0:0:1]} 6. c3 {[%emt 0:0:0]} Bd6 {[%emt 0:0:0]} 7. Bd3 {[%emt 0:0:2]} 0-0 {[%emt 0:0:2]} 8. Ne2 {[%emt 0:0:0]} Re8 {[%emt 0:0:4]
} 9. Qc2 {[%emt 0:0:1]} h5 {[%emt 0:0:2]} 10. 0-0 {[%emt 0:0:0]} h4 {[%emt 0:0:4]} 11. h3 {[%emt 0:0:1]} Nd7 {[%emt 0:0:1]} 12. Be3 {[%emt 0:0:2]} Nf8 {[%emt 0:0:1]} 13. c4 {[%emt 0:0:1]} Be6 {[%emt 0:0:0]} 14. Rad1 {[%emt 0:0:6]} Rc8 {[%emt 0:0:1]} 15. Nc3 {[%emt 0:0:7]} Bb8 {[%emt 0:0:4]} 16. Rfe1 {[%emt 0:0:6]} Qc7 {[%emt 0:0:17]} 17. f4 {[%emt 0:0:4]
} Ng6 {[%emt 0:0:45]} 18. d5 {[%emt 0:0:33]} cxd5 {[%emt 0:0:0]} 19. cxd5 {[%emt 0:0:1]} Bxd5 {[%emt 0:0:14]} 20. Bxg6 {[%emt 0:0:3]} Bc6 {[%emt 0:0:36]} 21. Bh7+ {[%emt 0:0:32]} Kh8 {[%emt 0:0:2]} 22. Bc1 {[%emt 0:0:2]
} g6 {[%emt 0:0:4]} 23. Bxg6 {[%emt 0:0:21]} fxg6 {[%emt 0:0:0]} 24. Qxg6 {[%emt 0:0:5]} Qg7 {[%emt 0:0:1]} 25. Rxe8+ {[%emt 0:0:13]} Rxe8 {[%emt 0:0:4]} 26. Qxg7+ {[%emt 0:0:6]} Kxg7 {[%emt 0:0:1]} 27. Kf2 {[%emt 0:0:1]} Kf7 {[%emt 0:0:4]} 28. Rd3 {[%emt 0:0:10]} Rg8 {[%emt 0:0:0]} 29. g3 {[%emt 0:0:2]} hxg3+ {[%emt 0:0:2]} 30. Rxg3 {[%emt 0:0:1]} Rh8 {[%emt 0:0:1]} 31. Be3 {[%emt 0:0:2]} Rh4 {[%emt 0:0:1]} 32. Ne2 {[%emt 0:0:3]
} Bd5 {[%emt 0:0:2]} 33. b3 {[%emt 0:0:2]} Be6 {[%emt 0:0:0]} 34. Kg2 {[%emt 0:0:5]} Bd5+ {[%emt 0:0:1]} 35. Kf2 {[%emt 0:0:3]} Be6 {[%emt 0:0:1]} 36. Kg2 {[%emt 0:0:14]} Bd5+ {[%emt 0:0:2]} 37. Kh2 {[%emt 0:0:1]
} Be6 {[%emt 0:0:6]} 38. Nd4 {[%emt 0:0:20]} Bxf4 {[%emt 0:0:0]} 39. Bxf4 {[%emt 0:0:1]} Rxf4 {[%emt 0:0:0]} 40. Rg7+ {[%emt 0:0:1]} Ke8 {[%emt 0:0:6]} 41. Nxe6 {[%emt 0:0:1]} Rf2+ {[%emt 0:0:1]} 42. Rg2 {[%emt 0:0:1]
} 1-0

[Event "FIDE-Online-Steinitz-Memorial-Women"]
[White "Cori T., Deysi"]
[Black "Stefanova, Antoaneta"]
[Site "Internet"]
[Round "11"]
[Annotator "ChessBase"]
[Result "0-1"]
[Date "2020.05.16"]
[WhiteElo "2391"]
[BlackElo "2485"]
[PlyCount "100"]
[TimeControl "180+2"]

1. d4 d5 2. c4 {[%emt 0:0:5]} c6 {[%emt 0:0:7]} 3. e3 {[%emt 0:0:1]} Nf6 {[%emt 0:0:5]} 4. Nc3 {[%emt 0:0:1]} g6 {[%emt 0:0:2]} 5. Nf3 {[%emt 0:0:0]} Bg7 {[%emt 0:0:1]} 6. b3 {[%emt 0:0:1]} 0-0 {[%emt 0:0:3]} 7. Bb2 {[%emt 0:0:1]} b6 {[%emt 0:0:2]} 8. Bd3 {[%emt 0:0:2]} Bb7 {[%emt 0:0:0]} 9. 0-0 {[%emt 0:0:1]} Nbd7 {[%emt 0:0:6]} 10. Rc1 {[%emt 0:0:2]} e6 {[%emt 0:0:4]} 11. Qe2 {[%emt 0:0:2]} c5 {[%emt 0:0:4]} 12. cxd5 {[%emt 0:0:3]
} exd5 {[%emt 0:0:16]} 13. Rfd1 {[%emt 0:0:3]} Qe7 {[%emt 0:0:0]} 14. Bb5 {[%emt 0:0:10]} Rfd8 {[%emt 0:0:18]} 15. Na4 {[%emt 0:0:20]} Rac8 {[%emt 0:0:18]} 16. h3 {[%emt 0:0:12]} cxd4 {[%emt 0:0:8]} 17. Nxd4 {[%emt 0:0:5]
} Nc5 {[%emt 0:0:4]} 18. Nf3 {[%emt 0:0:31]} h6 {[%emt 0:0:0]} 19. Nxc5 {[%emt 0:0:10]} bxc5 {[%emt 0:0:1]} 20. Ba6 {[%emt 0:0:5]} Ne4 {[%emt 0:0:12]} 21. Bxb7 {[%emt 0:0:3]} Qxb7 {[%emt 0:0:2]} 22. Bxg7 {[%emt 0:0:5]
} Kxg7 {[%emt 0:0:0]} 23. Qb2+ {[%emt 0:0:2]} Kh7 {[%emt 0:0:0]} 24. Qe5 {[%emt 0:0:2]} Rc7 {[%emt 0:0:10]} 25. h4 {[%emt 0:0:3]} Re7 {[%emt 0:0:3]} 26. Qf4 {[%emt 0:0:2]} Kg7 {[%emt 0:0:15]} 27. Nh2 {[%emt 0:0:31]
} Qb6 {[%emt 0:0:19]} 28. Ng4 {[%emt 0:0:7]} h5 {[%emt 0:0:0]} 29. Nh2 {[%emt 0:0:6]} a5 {[%emt 0:0:3]} 30. Nf3 {[%emt 0:0:4]} a4 {[%emt 0:0:2]
} 31. bxa4 {[%emt 0:0:2]} c4 {[%emt 0:0:1]} 32. Nd4 {[%emt 0:0:0]} Ra8 {[%emt 0:0:3]} 33. f3 {[%emt 0:0:3]} Nf6 {[%emt 0:0:2]} 34. Qg5 {[%emt 0:0:1]} Kh7 {[%emt 0:0:1]} 35. Rb1 {[%emt 0:0:3]} Qd6 {[%emt 0:0:2]
} 36. Kh1 {[%emt 0:0:14]} Rxa4 {[%emt 0:0:2]} 37. e4 {[%emt 0:0:0]} Qe5 {[%emt 0:0:3]} 38. Nc6 {[%emt 0:0:5]} Qxg5 {[%emt 0:0:2]} 39. hxg5 {[%emt 0:0:1]} Rc7 {[%emt 0:0:4]} 40. exd5 {[%emt 0:0:6]} Nxd5 {[%emt 0:0:3]
} 41. Ne5 {[%emt 0:0:4]} Nc3 {[%emt 0:0:2]} 42. Rd8 {[%emt 0:0:0]} Nxb1 {[%emt 0:0:2]} 43. Nd7 {[%emt 0:0:2]} Rxd7 {[%emt 0:0:1]} 44. Rxd7 {[%emt 0:0:1]} c3 {[%emt 0:0:2]} 45. Rxf7+ {[%emt 0:0:1]} Kg8 {[%emt 0:0:1]
} 46. Rc7 {[%emt 0:0:1]} Rxa2 {[%emt 0:0:2]} 47. Kh2 {[%emt 0:0:1]
} c2 {[%emt 0:0:2]} 48. f4 {[%emt 0:0:2]} Nd2 {[%emt 0:0:2]
} 49. f5 {[%emt 0:0:2]} gxf5 {[%emt 0:0:1]} 50. g6 {[%emt 0:0:1]} Nb3 {[%emt 0:0:2]
} 0-1

[Event "FIDE-Online-Steinitz-Memorial-Women"]
[White "Kosteniuk, Alexandra"]
[Black "Cori T., Deysi"]
[Site "Internet"]
[Round "12"]
[Annotator "ChessBase"]
[Result "1-0"]
[Date "2020.05.16"]
[WhiteElo "2521"]
[BlackElo "2391"]
[PlyCount "53"]
[TimeControl "180+2"]

1. e4 d5 2. exd5 {[%emt 0:0:4]} Qxd5 {[%emt 0:0:3]} 3. Nc3 {[%emt 0:0:0]} Qd6 {[%emt 0:0:1]} 4. d4 {[%emt 0:0:1]} Nf6 {[%emt 0:0:1]} 5. Nf3 {[%emt 0:0:1]
} a6 {[%emt 0:0:1]} 6. g3 {[%emt 0:0:1]} Bg4 {[%emt 0:0:3]} 7. Bg2 {[%emt 0:0:1]} Nc6 {[%emt 0:0:2]} 8. 0-0 {[%emt 0:0:34]} 0-0-0 {[%emt 0:0:2]
} 9. h3 {[%emt 0:0:2]} Bh5 {[%emt 0:0:3]} 10. Bf4 {[%emt 0:0:0]} Qb4 {[%emt 0:0:1]} 11. a3 {[%emt 0:0:2]} Qxb2 {[%emt 0:0:5]} 12. Qe1 {[%emt 0:0:1]} Qxc2 {[%emt 0:0:33]} 13. Rc1 {[%emt 0:0:9]} Qf5 {[%emt 0:0:51]
} 14. d5 {[%emt 0:0:36]} Nxd5 {[%emt 0:0:16]} 15. Nxd5 {[%emt 0:0:1]
} Rxd5 {[%emt 0:0:3]} 16. Rxc6 {[%emt 0:0:40]} bxc6 {[%emt 0:0:0]} 17. Ne5 {[%emt 0:0:1]} e6 {[%emt 0:0:20]} 18. Bxd5 {[%emt 0:0:10]} cxd5 {[%emt 0:0:1]} 19. Qa5 {[%emt 0:0:1]} Be2 {[%emt 0:0:6]} 20. Re1 {[%emt 0:0:24]
} g5 {[%emt 0:0:30]} 21. Rxe2 {[%emt 0:0:5]} gxf4 {[%emt 0:0:0]} 22. Qxa6+ {[%emt 0:0:3]} Kd8 {[%emt 0:0:1]} 23. Qc6 {[%emt 0:0:16]} Ke7 {[%emt 0:0:9]} 24. Qd7+ {[%emt 0:0:2]} Kf6 {[%emt 0:0:1]} 25. Qxf7+ {[%emt 0:0:1]
} Kg5 {[%emt 0:0:1]} 26. Nf3+ {[%emt 0:0:4]} Kh6 {[%emt 0:0:0]} 27. Rxe6+ {[%emt 0:0:1]} 1-0